bitfinex/quotes_ETHUSD_20240816
["timestamp","ask_amount","ask_price","bid_price","bid_amount"]
[1723777576046,0.23920726,2592.2,2591.8,1.92915]
[1723777576241,0.23920726,2592.1,2591.8,1.92915]
[1723777576561,2.3921,2592.6,2591.9,1.92908]
[1723777576868,0.23916796,2592.5,2592.0,1.92899]
[1723777577038,0.23916796,2592.4,2592.2,1.92884]
[1723777577366,0.23916796,2592.3,2592.2,1.92884]
[1723777578230,2.3921,2592.8,2592.2,1.92884]
[1723777578527,0.23915063,2592.7,2592.2,1.92884]
[1723777578732,0.23915063,2592.6,2592.2,1.92884]
[1723777578935,0.23915063,2592.5,2592.2,1.92884]
[1723777579135,2.3921,2592.8,2592.2,1.92884]
[1723777579336,0.23913442,2592.7,2592.2,1.92884]
[1723777579550,0.23913442,2592.6,2592.2,1.92884]
[1723777579724,0.23913442,2592.5,2592.2,1.92884]
[1723777579930,2.3921,2592.8,2592.2,1.92884]
[1723777580125,0.23915034,2592.7,2592.2,1.92884]
[1723777580440,0.23915034,2592.6,2592.2,1.92884]
[1723777580642,2.3921,2592.8,2592.2,1.92884]
[1723777580643,0.23915034,2592.5,2592.2,1.92884]
[1723777580855,2.3921,2592.8,2592.2,1.92884]
[1723777581023,0.23914455,2592.7,2592.2,1.92884]
[1723777581215,0.23914455,2592.6,2592.2,1.92884]
[1723777581414,0.23914455,2592.5,2592.2,1.92884]
[1723777581656,2.3921,2592.8,2592.2,1.92884]
[1723777581855,0.23914082,2592.7,2592.2,1.92884]
[1723777582014,0.23914082,2592.6,2592.2,1.92884]
[1723777582225,0.23914082,2592.5,2592.0,36.92898]
[1723777582425,0.23914082,2592.4,2592.1,1.92893]
[1723777582665,0.23914082,2592.3,2592.2,1.92885]
[1723777582843,3.38772973,2592.8,2592.2,1.92885]
[1723777582844,0.23914082,2592.7,2592.2,1.92885]
[1723777583049,0.23916412,2592.6,2592.2,1.92885]
[1723777583324,0.23916412,2592.5,2592.1,1.92893]
[1723777583635,0.60996772,2592.7,2592.1,1.92893]
[1723777583636,0.23916412,2592.4,2592.1,1.92893]
[1723777583817,0.23916412,2592.3,2592.1,1.92893]
[1723777584020,2.53846772,2592.7,2592.0,35.0]
[1723777584250,1.92865,2592.5,2591.8,1.92912]
[1723777584569,2.3038,2592.3,2591.7,1.92922]
[1723777584860,2.3038,2592.3,2591.8,1.92916]
[1723777584861,0.23917575,2592.2,2591.8,1.92916]
[1723777585534,0.23917575,2592.2,2591.9,1.92908]
[1723777585736,2.4233,2592.5,2591.9,1.92908]
[1723777585933,0.23919023,2592.4,2591.9,1.92908]
[1723777586136,0.23919023,2592.3,2591.9,1.92908]
[1723777586358,0.23919023,2592.2,2591.9,1.92908]
[1723777586540,3.47711349,2592.5,2591.9,1.92908]
[1723777586738,0.2391945,2592.4,2591.9,1.92908]
[1723777587025,0.2391945,2592.3,2591.9,1.92908]
[1723777587232,0.23921451,2592.2,2591.9,1.92908]
[1723777587437,0.23921451,2592.1,2591.9,1.92908]
[1723777587655,4.35194,2592.5,2591.9,1.92908]
[1723777587960,0.23920762,2592.4,2591.9,1.92908]
[1723777588131,0.23920762,2592.3,2591.9,1.92908]
[1723777588336,0.23920762,2592.2,2591.9,1.92908]
[1723777588523,0.23920762,2592.1,2591.9,1.92908]
[1723777588723,3.28429581,2592.5,2591.9,1.92908]
[1723777588964,0.23920534,2592.4,2591.9,1.92908]
[1723777589260,0.23920534,2592.3,2591.9,1.92908]
[1723777589428,0.23920534,2592.2,2591.9,1.92908]
[1723777589627,3.28429581,2592.5,2591.9,1.92908]
[1723777589628,0.23920534,2592.1,2591.9,1.92908]
[1723777589874,3.28429581,2592.5,2591.9,1.92908]
[1723777590202,0.23919824,2592.4,2591.9,1.92908]
[1723777590487,0.23919824,2592.3,2591.9,1.92908]
[1723777590626,0.23919824,2592.2,2591.9,1.92908]
[1723777590959,0.23919824,2592.1,2591.9,1.92908]
[1723777591266,2.4233,2592.5,2591.9,1.92908]
[1723777591637,0.23920159,2592.4,2591.9,1.92908]
[1723777591958,2.4233,2592.5,2591.9,1.92908]
[1723777591959,0.23920159,2592.3,2591.9,1.92908]
[1723777592165,0.23920159,2592.2,2591.9,1.92908]
[1723777592381,0.23920159,2592.1,2591.9,1.92908]
[1723777592526,2.4233,2592.5,2592.0,1.92901]
[1723777592722,0.23918006,2592.4,2592.0,1.92901]
[1723777593024,0.23918006,2592.3,2592.0,36.92901]
[1723777593224,0.23918006,2592.2,2592.0,36.92901]
[1723777593460,0.23920315,2592.1,2592.0,1.92901]
[1723777593667,0.23918373,2592.1,2592.0,1.92901]
[1723777593830,2.4233,2592.5,2592.0,1.92901]
[1723777594030,0.23918247,2592.4,2592.0,1.92901]
[1723777594333,0.23918247,2592.3,2592.0,1.92901]
[1723777594557,2.4233,2592.5,2592.0,36.92901]
[1723777594558,0.23918247,2592.2,2592.0,36.92901]
[1723777594868,2.4233,2592.5,2592.0,36.92901]
[1723777595073,0.23918697,2592.4,2592.0,36.92901]
[1723777595276,0.23918697,2592.3,2592.0,36.92901]
[1723777595568,0.23918697,2592.2,2592.0,1.92901]
[1723777595866,2.4233,2592.5,2592.0,1.92901]
[1723777596028,0.23918333,2592.4,2592.0,1.92901]
[1723777596231,0.23918333,2592.3,2591.9,36.92908]
[1723777596432,0.23918333,2592.2,2591.9,1.92908]
[1723777596761,0.23921524,2592.1,2591.9,1.92908]
[1723777596927,4.35194,2592.5,2591.9,1.92908]
[1723777597130,0.23918919,2592.4,2591.9,1.92908]
[1723777597331,0.23918919,2592.3,2591.9,1.92908]
[1723777597531,0.23918919,2592.2,2591.9,1.92908]
[1723777597878,0.23918919,2592.1,2591.9,1.92908]
[1723777598076,2.4233,2592.5,2591.9,1.92908]
[1723777598290,0.23918238,2592.4,2591.9,1.92908]
[1723777598493,0.23918238,2592.3,2591.9,1.92908]
[1723777598795,0.23918238,2592.2,2592.0,1.92899]
[1723777599003,0.23918238,2592.1,2591.9,1.92908]
[1723777599199,2.4233,2592.5,2591.9,1.92908]
[1723777599200,0.23918238,2592.0,2591.9,1.92908]
[1723777599868,0.23922707,2592.0,2591.7,1.92921]
[1723777600111,0.23922707,2591.9,2591.7,1.92921]
[1723777600319,0.23922707,2591.8,2591.5,1.92935]
[1723777600477,0.23922707,2591.7,2591.6,1.92928]
[1723777600677,0.23922707,2591.7,2591.5,1.92935]
[1723777600893,0.23922707,2591.7,2591.1,2.4189]
[1723777600894,0.23922707,2591.6,2591.1,1.92965]
[1723777601080,0.23922707,2591.5,2591.2,1.9296]
[1723777601283,0.23922707,2591.4,2591.2,1.9296]
[1723777601484,0.23922707,2591.3,2591.2,1.9296]
[1723777602218,0.23922707,2591.3,2591.0,36.92973]
[1723777602512,0.23922707,2591.2,2591.1,1.92968]
[1723777602865,0.23922707,2591.6,2591.1,1.92968]
[1723777603067,0.23922707,2591.5,2591.0,36.92973]
[1723777603413,0.23922707,2591.4,2591.0,1.92973]
[1723777603811,0.23922707,2591.3,2591.0,1.92973]
[1723777604010,0.23922707,2591.2,2591.0,1.92973]
[1723777604171,0.23922707,2591.1,2591.0,1.92973]
[1723777604383,0.23922707,2591.4,2591.0,1.92973]
[1723777604689,2.4079,2591.2,2590.9,1.92982]
[1723777604885,0.23922707,2591.1,2590.9,1.92982]
[1723777606922,2.4079,2591.2,2590.9,1.92982]
[1723777607577,2.4079,2591.2,2590.7,1.92996]
[1723777607881,0.23939598,2591.1,2590.7,1.92996]
[1723777608082,2.4079,2591.2,2590.7,1.92996]
[1723777608277,0.23939803,2591.1,2590.8,1.92989]
[1723777608499,2.4079,2591.2,2590.8,1.92989]
[1723777608701,2.4079,2591.2,2590.9,35.0]
[1723777609219,2.4079,2591.2,2590.7,1.92996]
[1723777609220,0.23939488,2591.1,2590.7,1.92996]
[1723777609403,0.23941272,2591.0,2590.7,1.92996]
[1723777609577,2.64869,2591.2,2590.7,1.92996]
[1723777609917,0.23941894,2591.1,2590.7,1.92996]
[1723777610227,0.23941894,2591.0,2590.5,1.93011]
[1723777610407,2.2861,2590.9,2590.5,1.93011]
[1723777610921,2.2861,2590.9,2590.3,1.93026]
[1723777610922,0.23945079,2590.8,2590.3,1.93026]
[1723777611126,2.2861,2590.9,2590.4,1.93018]
[1723777612116,2.2861,2590.9,2590.3,1.93026]
[1723777612117,0.23946537,2590.8,2590.3,1.93026]
[1723777612314,2.2861,2590.9,2590.3,1.93026]
[1723777613617,2.7534609,2590.9,2590.3,1.93026]
[1723777613821,0.23947389,2590.8,2590.3,1.93026]
[1723777614136,4.6832909,2590.9,2590.4,35.0]
[1723777614337,0.23946978,2590.8,2590.2,1.93034]
[1723777614649,0.23947894,2590.7,2590.2,1.93034]
[1723777614854,2.59122109,2590.8,2590.3,35.0]
[1723777615034,0.23948549,2590.7,2590.3,35.0]
[1723777615364,2.59122109,2590.8,2590.1,4.39162]
[1723777615531,0.23948817,2590.7,2590.1,4.39162]
[1723777615863,1.92991,2590.8,2590.2,35.0]
[1723777618580,2.4117,2590.6,2590.0,1.9305]
[1723777620666,2.4117,2590.6,2590.1,35.0]
[1723777622275,2.4117,2590.6,2590.0,1.9305]
[1723777622276,1.93029,2590.3,2589.6,2.0594374]
[1723777622476,2.461929,2590.2,2589.6,0.1286674]
[1723777622793,4.392309,2590.2,2589.6,2.0594574]
[1723777622955,1.93043,2590.1,2589.6,0.1286674]
[1723777623157,2.2689,2590.0,2589.6,0.1286674]
[1723777624591,4.19941,2590.0,2589.6,0.1286674]
[1723777624801,2.2689,2589.7,2589.6,0.1286674]
[1723777625962,4.19962,2589.7,2589.6,0.1286674]
[1723777626161,4.619582,2589.7,2589.6,0.1286674]
[1723777626393,5.169582,2589.7,2589.6,0.1286674]
[1723777627790,7.100302,2589.7,2589.6,0.1286674]
[1723777628027,7.33997731,2589.7,2589.6,0.1286674]
[1723777629744,27.10997731,2589.7,2589.6,0.1286674]
[1723777630353,27.11003976,2589.7,2589.6,0.1286674]
[1723777631138,2.4907,2588.9,2588.2,4.41161]
[1723777631340,4.42207,2588.9,2588.2,4.41161]
[1723777632314,4.42207,2588.9,2588.0,1.93196]
[1723777632315,2.4907,2588.9,2588.0,4.19916]
[1723777632523,2.73977,2588.9,2588.0,4.19916]
[1723777632720,4.67109,2588.9,2588.2,1.93183]
[1723777633026,1.93148,2588.7,2588.0,4.19916]
[1723777633241,2.591745,2588.7,2588.0,4.19916]
[1723777633740,0.660265,2588.7,2588.1,1.93188]
[1723777633912,1.9314,2588.8,2588.1,1.93188]
[1723777635202,1.93147,2588.7,2588.1,1.93188]
[1723777635933,1.93147,2588.7,2588.0,2.2672]
[1723777636138,0.55,2588.6,2588.0,2.2672]
[1723777636452,0.55,2588.6,2587.7,0.60564314]
[1723777636453,1.93169,2588.4,2587.7,1.9322]
[1723777636847,2.602247,2588.5,2587.6,1.93228]
[1723777637148,2.602247,2588.5,2587.9,1.93205]
[1723777637449,4.533867,2588.5,2587.7,1.93218]
[1723777638145,2.602247,2588.5,2587.5,2.3371]
[1723777638346,2.3992,2588.8,2588.2,1.93183]
[1723777638552,19.77,2589.5,2588.5,1.93161]
[1723777638553,2.3992,2589.2,2588.5,1.93161]
[1723777639352,4.3303,2589.2,2588.5,1.93161]
[1723777640150,2.3992,2589.2,2588.6,1.93154]
[1723777640347,2.83223,2589.2,2588.6,1.93154]
[1723777641313,2.83223,2589.2,2588.4,4.36719]
[1723777641314,4.76338,2589.2,2588.4,4.36719]
[1723777641536,4.76338,2589.2,2587.9,3.217]
[1723777641537,4.3685,2589.0,2588.1,1.9319]
[1723777641858,4.3685,2589.0,2588.0,1.93197]
[1723777641859,2.4372,2588.7,2588.0,1.93197]
[1723777642429,1.93158,2588.6,2587.8,1.93213]
[1723777642633,2.4372,2588.3,2587.6,2.3239]
[1723777642841,2.4372,2588.3,2587.8,1.93213]
[1723777644145,2.4372,2588.3,2587.6,4.25618]
[1723777644473,2.4372,2588.3,2587.7,1.93221]
[1723777644763,2.4372,2588.3,2587.8,1.93214]
[1723777644952,4.9497778,2588.3,2587.8,1.93214]
[1723777647816,19.77,2588.4,2588.2,1.93183]
[1723777648019,2.3822,2588.5,2588.2,1.93183]
[1723777648249,2.3822,2588.5,2588.0,1.93196]
[1723777648492,2.62042,2588.5,2587.9,1.93206]
[1723777648846,0.23822,2588.5,2588.2,1.93184]
[1723777649051,2.3822,2588.7,2588.2,1.93184]
[1723777649789,2.3822,2588.7,2588.4,1.93169]
[1723777650086,2.3822,2589.0,2588.6,1.93148]
[1723777650596,2.3822,2589.0,2587.4,0.88179423]
[1723777650597,2.62198958,2588.9,2588.3,1.9317]
[1723777650804,2.62198958,2588.9,2588.4,1.93168]
[1723777651099,2.62198958,2588.9,2588.3,1.9317]
[1723777651100,0.23978958,2588.8,2588.3,1.9317]
[1723777651397,0.23978958,2588.8,2588.2,1.93183]
[1723777651551,0.69511354,2588.8,2588.2,1.93183]
[1723777651752,0.23978958,2588.7,2588.2,1.93183]
[1723777651958,0.23978958,2588.7,2588.3,1.93175]
[1723777652495,0.74065293,2588.7,2588.3,1.93175]
[1723777652696,2.3822,2588.9,2588.0,2.3947]
[1723777652697,0.23978958,2588.6,2588.5,1.93162]
[1723777652855,9.37096,2589.4,2588.6,1.93154]
[1723777652856,2.3822,2589.2,2588.6,1.93154]
[1723777653053,0.23972386,2589.1,2588.8,1.93133]
[1723777653255,2.3822,2589.2,2588.6,1.93154]
[1723777653256,0.23972386,2589.0,2588.6,1.93154]
[1723777653482,0.23972386,2588.9,2588.6,1.93154]
[1723777653804,0.23972386,2588.8,2588.7,1.93147]
[1723777654001,0.23972386,2589.0,2588.7,1.93147]
[1723777654206,0.23974404,2588.9,2588.8,1.93133]
[1723777654385,0.23973713,2588.9,2588.8,1.93133]
[1723777658412,0.23822,2589.1,2588.8,1.93133]
[1723777658624,0.23975727,2589.0,2588.8,1.93133]
[1723777658942,0.23822,2589.1,2588.8,1.93133]
[1723777659091,0.23975501,2589.0,2588.8,1.93133]
[1723777659296,0.23975501,2588.9,2588.8,1.93133]
[1723777659498,0.23975501,2588.9,2588.4,1.93166]
[1723777659737,2.65615501,2588.8,2588.5,1.93161]
[1723777659944,0.23975501,2588.7,2588.5,1.93161]
[1723777660146,0.23975501,2588.6,2588.4,1.93166]
[1723777660447,0.23975501,2588.5,2588.4,1.93166]
[1723777660929,0.23975501,2588.8,2588.3,1.93176]
[1723777661132,4.325777,2588.9,2588.1,4.34881]
[1723777661133,0.23975501,2588.7,2588.1,4.34881]
[1723777661311,0.23975501,2588.6,2588.1,4.34881]
[1723777661518,0.23975501,2588.5,2588.3,1.93171]
[1723777661701,0.23975501,2588.4,2588.3,1.93171]
[1723777661902,3.71285182,2589.0,2588.4,1.93169]
[1723777662199,0.23978947,2588.9,2588.5,1.93156]
[1723777662543,19.77,2589.0,2588.4,1.93169]
[1723777662544,0.23978947,2588.8,2588.4,1.93169]
[1723777662698,23.48285182,2589.0,2588.2,1.93183]
[1723777662699,0.23978947,2588.7,2588.2,1.93183]
[1723777662903,0.23978947,2588.7,2588.3,1.93174]
[1723777662904,0.23978947,2588.6,2588.3,1.93174]
[1723777663841,0.23978947,2588.6,2588.5,1.93162]
[1723777664042,19.77,2589.0,2588.6,1.93154]
[1723777664343,0.23975122,2588.9,2588.6,1.93154]
[1723777664641,0.23975122,2588.8,2588.6,1.93154]
[1723777664815,19.77,2589.0,2588.6,1.93154]
[1723777664816,0.23975122,2588.7,2588.6,1.93154]
[1723777665012,0.23975122,2588.9,2588.6,1.93154]
[1723777665224,23.16671148,2589.0,2588.6,1.93154]
[1723777665225,0.23975122,2588.8,2588.6,1.93154]
[1723777665427,0.23975122,2588.7,2588.6,1.93154]
[1723777665635,6.75711482,2589.1,2588.8,1.93139]
[1723777665636,0.23975122,2588.9,2588.8,1.93139]
[1723777665806,23.48285182,2589.6,2588.7,2.4169]
[1723777666003,9.8564,2589.8,2588.7,2.4169]
[1723777666004,0.23966779,2589.5,2588.7,2.4169]
[1723777666203,0.23966779,2589.4,2589.2,1.93102]
[1723777666398,2.4164,2589.8,2589.3,1.93101]
[1723777666604,0.85256214,2589.7,2589.3,1.93101]
[1723777666799,0.85256214,2589.7,2589.1,1.93114]
[1723777666800,0.61292518,2589.7,2589.1,1.93114]
[1723777667029,0.23964474,2589.6,2589.1,1.93114]
[1723777667238,0.23964474,2589.5,2589.1,1.93114]
[1723777667445,0.23964474,2589.4,2589.2,1.93109]
[1723777667655,0.61292518,2589.7,2589.2,1.93109]
[1723777667816,0.23963448,2589.6,2589.3,1.93101]
[1723777668017,0.23963448,2589.5,2589.3,1.93101]
[1723777668218,0.23963448,2589.4,2589.3,1.93101]
[1723777669431,0.23963656,2589.6,2589.1,1.93115]
[1723777669831,0.23963656,2589.6,2589.0,2.2629]
[1723777670204,0.23963656,2589.6,2589.2,1.93107]
[1723777670546,2.4164,2589.8,2589.2,1.93107]
[1723777670547,0.2396192,2589.5,2589.4,1.93088]
[1723777671044,4.63504,2589.8,2589.4,1.93088]
[1723777671244,0.23962441,2589.7,2589.4,1.93088]
[1723777671548,0.23962552,2589.6,2589.4,1.93088]
[1723777671755,2.4164,2589.8,2589.4,1.93088]
[1723777671907,0.23962342,2589.7,2589.6,1.93078]
[1723777672111,7.44,2590.1,2590.0,1.9305]
[1723777672314,2.53513408,2591.1,2589.4,3.217]
[1723777672315,33.22165983,2590.8,2589.4,3.217]
[1723777672615,0.23952699,2590.7,2590.3,1.9302]
[1723777672949,0.23952699,2590.6,2590.3,1.9302]
[1723777673106,0.23952699,2590.5,2590.3,1.9302]
[1723777673360,0.23,2590.7,2590.4,1.93019]
[1723777673561,0.23949104,2590.6,2590.4,1.93019]
[1723777673765,0.23,2590.7,2590.4,1.93019]
[1723777673967,0.23948724,2590.6,2590.4,1.93019]
[1723777674291,0.23,2590.7,2590.4,1.93019]
[1723777674618,7.44,2591.1,2590.3,2.2629]
[1723777674756,7.44,2591.1,2590.9,1.9298]
[1723777674960,2.951,2591.1,2590.8,1.92984]
[1723777675201,2.951,2591.1,2590.6,1.93004]
[1723777675512,2.951,2591.1,2590.7,1.92997]
[1723777675996,19.77,2591.2,2590.8,1.92989]
[1723777676299,19.77,2591.2,2590.7,1.92997]
[1723777676468,19.77,2591.2,2590.9,1.92981]
[1723777676670,19.77,2591.2,2591.1,1.92968]
[1723777676998,21.48131459,2591.2,2591.1,1.92968]
[1723777677226,21.48131459,2591.2,2590.3,3.217]
[1723777677227,1.92981,2591.0,2590.3,1.93026]
[1723777677366,1.92981,2591.0,2590.1,4.29499]
[1723777677367,1.92981,2591.0,2590.1,1.93039]
[1723777677570,2.3156,2591.1,2590.2,1.93035]
[1723777677571,2.354371,2590.9,2590.2,1.93035]
[1723777677868,4.2453,2591.1,2590.1,1.93041]
[1723777678070,0.55,2591.0,2590.1,1.93041]
[1723777678306,0.47953,2590.9,2590.4,1.93019]
[1723777678514,0.47953,2590.9,2590.4,3.86038]
[1723777678712,0.47953,2590.9,2590.4,1.93019]
[1723777678872,2.3156,2591.1,2590.6,1.93001]
[1723777680599,2.3156,2591.1,2590.4,1.93018]
[1723777681006,4.2453,2591.1,2590.4,1.93018]
[1723777681222,4.2453,2591.1,2590.3,1.93026]
[1723777681517,4.2453,2591.1,2590.2,1.93032]
[1723777681518,0.97453,2591.0,2590.2,1.93032]
[1723777682117,0.42453,2591.0,2590.2,2.4261]
[1723777682271,2.3813,2591.2,2590.2,1.93034]
[1723777682272,1.92968,2591.1,2590.2,1.93034]
[1723777682473,0.431098,2591.0,2590.2,1.93034]
[1723777682672,2.360868,2591.0,2590.3,1.93023]
[1723777682923,0.431098,2591.0,2590.3,1.93023]
[1723777683221,20.201098,2591.0,2590.3,1.93023]
[1723777683375,2.2130778,2590.9,2590.3,1.93023]
[1723777683717,2.2130778,2590.9,2590.4,1.93018]
[1723777685386,2.2130778,2590.9,2590.5,1.93012]
[1723777685576,19.77,2591.0,2590.8,1.92986]
[1723777686773,19.77,2591.0,2590.9,1.92983]
[1723777687013,2.3813,2591.2,2590.9,1.92983]
[1723777687517,19.77,2591.3,2590.9,1.92983]
[1723777687716,23.57945125,2591.3,2590.9,1.92983]
[1723777688371,7.44,2591.5,2591.1,1.92964]
[1723777688895,7.44,2591.5,2591.2,1.9296]
[1723777689211,7.44,2591.5,2591.3,1.92951]
[1723777689528,7.44,2591.5,2591.2,1.9296]
[1723777690325,7.44,2591.5,2591.3,1.92952]
[1723777690681,7.44,2591.5,2591.2,1.92959]
[1723777690881,7.44,2591.5,2591.1,1.92968]
[1723777692157,2.4632,2591.6,2591.1,1.92968]
[1723777692281,2.4632,2591.6,2591.2,1.9296]
[1723777692282,19.77,2591.6,2591.2,1.9296]
[1723777692626,19.77,2591.6,2591.3,1.92952]
[1723777692828,19.77,2591.6,2591.2,1.9296]
[1723777692998,20.62666601,2591.6,2591.2,1.9296]
[1723777693322,2.456,2591.5,2591.2,1.9296]
[1723777693522,20.62666601,2591.6,2591.2,1.9296]
[1723777693722,19.77,2591.6,2591.2,1.9296]
[1723777693925,19.77,2591.6,2591.3,1.92953]
[1723777694421,19.77,2591.6,2590.9,2.4252]
[1723777694422,19.77,2591.6,2591.4,1.92945]
[1723777695427,19.77,2591.6,2591.5,1.92938]
[1723777698197,19.77,2591.9,2591.5,1.92938]
[1723777698422,0.23931156,2591.8,2591.5,1.92938]
[1723777698605,20.988,2591.9,2591.5,1.92938]
[1723777698926,0.23929183,2591.8,2591.5,1.92938]
[1723777699136,19.77,2591.9,2591.7,1.92923]
[1723777699720,19.77,2591.9,2591.8,1.92916]
[1723777699931,19.77,2592.5,2592.3,1.92878]
[1723777700095,0.23919502,2592.4,2592.3,1.92878]
[1723777700295,0.23919669,2592.4,2592.3,1.92878]
[1723777700512,2.2907,2592.7,2592.3,1.92878]
[1723777700824,0.23917872,2592.6,2592.3,1.92878]
[1723777701030,0.23917872,2592.5,2592.4,1.92871]
[1723777701214,3.70782922,2593.3,2592.9,1.92828]
[1723777701397,0.2390848,2593.2,2593.0,1.92826]
[1723777701604,5.99852922,2593.5,2592.9,1.92829]
[1723777701605,0.2390848,2593.1,2592.9,1.92829]
[1723777701787,0.2390848,2593.0,2592.9,1.92829]
[1723777702299,0.22907,2593.4,2592.9,1.92829]
[1723777702498,0.23906561,2593.3,2593.0,1.92826]
[1723777702813,0.27588356,2593.3,2593.1,1.92813]
[1723777703029,0.27588356,2593.3,2593.2,1.92811]
[1723777703330,5.99852922,2593.8,2593.2,1.92811]
[1723777703331,2.2907,2593.8,2593.2,1.92811]
[1723777703487,0.23903577,2593.7,2593.2,1.92811]
[1723777703688,0.23903577,2593.6,2593.2,1.92811]
[1723777703884,0.23903577,2593.5,2593.2,1.92811]
[1723777704117,0.79261392,2593.7,2593.2,1.92811]
[1723777704284,0.23901014,2593.6,2593.2,1.92811]
[1723777704485,2.2907,2593.8,2593.4,1.92797]
[1723777704730,0.23900925,2593.7,2593.4,1.92795]
[1723777705027,2.3904,2593.9,2592.8,4.38221]
[1723777705235,0.23900889,2593.8,2592.8,8.38221]
[1723777705435,2.16667889,2593.8,2593.1,1.92818]
[1723777705583,0.23900889,2593.7,2593.2,1.92811]
[1723777705786,0.26294089,2593.8,2593.2,1.92811]
[1723777705985,0.26294089,2593.8,2593.3,1.92803]
[1723777707234,0.26294089,2593.8,2593.4,1.92796]
[1723777707622,0.26294089,2593.8,2593.5,1.92785]
[1723777708148,0.26294089,2593.8,2593.4,1.92796]
[1723777708149,2.4315,2594.2,2593.6,1.9278]
[1723777711451,2.4315,2594.2,2593.4,1.92796]
[1723777711621,0.43588,2594.1,2593.4,1.92796]
[1723777712023,0.43588,2594.1,2593.5,1.92788]
[1723777713223,0.43588,2594.1,2593.3,1.92804]
[1723777713431,0.55,2594.0,2593.3,1.92804]
[1723777713627,1.92761,2593.9,2593.2,1.92806]
[1723777713828,0.436541,2593.8,2593.2,1.92806]
[1723777714067,0.436541,2593.8,2593.3,1.92803]
[1723777717173,2.364221,2593.8,2593.1,1.92816]
[1723777717389,0.2364221,2593.7,2593.0,1.92824]
[1723777717745,2.4716,2593.6,2593.0,1.92824]
[1723777718371,2.4716,2593.6,2592.8,1.92841]
[1723777718590,2.4716,2593.4,2592.6,1.92854]
[1723777718787,1.92805,2593.3,2592.6,1.92854]
[1723777719856,4.42763,2593.2,2592.2,1.92884]
[1723777720049,4.42763,2593.2,2592.3,1.92878]
[1723777720050,1.92834,2592.9,2592.3,1.92878]
[1723777720790,1.92834,2592.9,2592.0,4.27738]
[1723777720791,1.92834,2592.9,2592.1,1.9289]
[1723777720991,4.88342,2592.8,2592.0,1.929]
[1723777721481,1.92849,2592.7,2592.0,1.929]
[1723777721681,0.55,2592.6,2592.0,1.929]
[1723777722888,0.55,2592.6,2591.7,35.0]
[1723777722889,2.405,2592.8,2591.7,35.0]
[1723777723111,0.55,2592.7,2592.2,1.92885]
[1723777723267,2.405,2592.8,2592.1,1.92893]
[1723777724620,2.2203853,2593.0,2592.4,1.92864]
[1723777724621,0.2920953,2593.0,2592.4,1.92864]
[1723777724906,2.3176,2593.4,2592.9,1.92834]
[1723777725107,4.24535,2593.7,2593.0,1.92821]
[1723777725306,0.23905624,2593.6,2593.0,1.92821]
[1723777725607,0.23905624,2593.5,2593.0,1.92821]
[1723777725808,1.92812,2593.2,2592.4,4.36437]
[1723777726046,1.92812,2593.2,2592.7,1.92848]
[1723777726047,0.23905624,2593.1,2592.7,1.92848]
[1723777726226,0.64127562,2593.2,2592.7,1.92848]
[1723777726227,2.3176,2593.3,2592.9,1.92833]
[1723777726718,2.3176,2593.3,2592.7,1.92847]
[1723777726881,0.47082634,2593.2,2592.7,1.92847]
[1723777727073,0.2390748,2593.1,2592.7,1.92847]
[1723777727273,0.23176,2593.2,2592.7,1.92847]
[1723777727473,0.23907522,2593.1,2592.7,1.92847]
[1723777727811,0.23176,2593.2,2592.7,1.92847]
[1723777727968,0.2390793,2593.1,2592.7,1.92847]
[1723777728507,0.23176,2593.2,2592.7,1.92847]
[1723777728711,0.23907963,2593.1,2592.7,1.92847]
[1723777729016,2.3176,2593.3,2592.7,1.92847]
[1723777729168,0.23907526,2593.2,2592.8,1.92839]
[1723777729369,2.3176,2593.3,2592.8,1.92839]
[1723777729370,0.23907526,2593.1,2592.8,1.92839]
[1723777729589,0.23907526,2593.0,2592.8,1.92839]
[1723777729870,2.92004958,2593.3,2592.7,1.92847]
[1723777730073,0.23907022,2593.2,2592.8,1.92841]
[1723777730283,0.23907022,2593.1,2592.8,1.92841]
[1723777730514,1.92775,2593.7,2593.1,1.92814]
[1723777730515,2.3065,2593.7,2593.1,1.92814]
[1723777730808,0.23901816,2593.6,2593.1,1.92814]
[1723777731019,0.23901816,2593.5,2593.1,1.92814]
[1723777731222,2.3065,2593.7,2593.2,1.92811]
[1723777731223,0.23901816,2593.4,2593.2,1.92811]
[1723777731522,0.23901816,2593.3,2593.2,1.92811]
[1723777732205,3.70689582,2593.9,2593.3,1.92803]
[1723777732417,0.23899203,2593.8,2593.4,1.92796]
[1723777732582,0.2389851,2593.7,2593.4,1.92796]
[1723777732909,2.4069,2594.0,2593.4,1.92796]
[1723777733108,0.23898415,2593.9,2593.4,1.92796]
[1723777733313,2.4069,2594.0,2593.4,1.92796]
[1723777733314,0.23898415,2593.8,2593.4,1.92796]
[1723777733486,0.23898415,2593.7,2593.4,1.92796]
[1723777733723,0.23898415,2593.6,2593.4,1.92796]
[1723777733904,0.23898415,2593.5,2593.4,1.92796]
[1723777734101,0.23898415,2593.8,2593.2,1.92811]
[1723777734310,2.3124,2593.6,2593.1,1.92819]
[1723777734609,2.3124,2593.6,2593.2,1.92811]
[1723777734610,0.23898415,2593.5,2593.2,1.92811]
[1723777735717,0.23898415,2593.5,2593.2,36.92811]
[1723777736047,0.23898415,2593.4,2593.0,1.92826]
[1723777736224,5.6337243,2593.9,2593.2,1.92811]
[1723777736427,0.23901308,2593.8,2593.4,1.92796]
[1723777736658,0.23901308,2593.7,2593.4,1.92796]
[1723777736809,0.23901308,2593.6,2593.4,1.92796]
[1723777737150,0.23901308,2593.5,2593.4,1.92796]
[1723777740174,22.0521,2594.0,2593.4,1.92796]
[1723777740378,0.23899013,2593.9,2593.4,1.92796]
[1723777740671,0.2389847,2593.8,2593.3,1.92804]